Workbook

Sheet Genel Veriler - Adet
A1: БОКСЫ LEZARD
B2: Январь | C2: Февраль | D2: Март | E2: Апрель | F2: Май | G2: Июнь | H2: Июль | I2: Август | J2: Сентябрь | K2: Октябрь | L2: Ноябрь | M2: Декабрь | N2: Итог
B3: Количество | C3: Количество | D3: Количество | E3: Количество | F3: Количество | G3: Количество | H3: Количество | I3: Количество | J3: Количество | K3: Количество | L3: Количество | M3: Количество | N3: Количество
A4: 2014 | N4: =SUM(B4:M4) -> 0
A5: 2015 | N5: =SUM(B5:M5) -> 0
A6: 2016 | N6: 0
A7: 2017 | N7: =SUM(B7:M7) -> 0
A8: 2018 | N8: =SUM(B8:M8) -> 0
A9: 2019 | N9: =SUM(B9:M9) -> 0
A11: 2015 | B11: =IFERROR(IF(B5<>0,B5/B4-1,""),IF(B4<>0,B5/B4-1,"")) ->  | C11: =IFERROR(IF(C5<>0,C5/C4-1,""),IF(C4<>0,C5/C4-1,"")) ->  | N11: =IFERROR(N5/N4-1,"") -> 
A12: 2016 | B12: =IFERROR(IF(B6<>0,B6/B5-1,""),IF(B5<>0,B6/B5-1,"")) ->  | N12: =IFERROR(N6/N5-1,"") -> 
A13: 2017 | N13: =IFERROR(N7/N6-1,"") -> 
A14: 2018 | N14: =IFERROR(N8/N7-1,"") -> 
A15: 2019
A17: LED - СВЕТОДИОДНЫЕ ПАНЕЛИ
B18: Январь | C18: Февраль | D18: Март | E18: Апрель | F18: Май | G18: Июнь | H18: Июль | I18: Август | J18: Сентябрь | K18: Октябрь | L18: Ноябрь | M18: Декабрь | N18: Итог
B19: Количество | C19: Количество | D19: Количество | E19: Количество | F19: Количество | G19: Количество | H19: Количество | I19: Количество | J19: Количество | K19: Количество | L19: Количество | M19: Количество | N19: Количество
A20: 2014 | N20: =SUM(B20:M20) -> 0
A21: 2015 | N21: 0
A22: 2016 | N22: 0
A23: 2017 | N23: 0
A24: 2018 | N24: =SUM(B24:M24) -> 0
A25: 2019 | N25: =SUM(B25:M25) -> 0
A27: 2015 | B27: =IFERROR(IF(B21<>0,B21/B20-1,""),IF(B20<>0,B21/B20-1,"")) ->  | C27: =IFERROR(IF(C21<>0,C21/C20-1,""),IF(C20<>0,C21/C20-1,"")) ->  | N27: =IFERROR(N21/N20-1,"") -> 
A28: 2016 | B28: =IFERROR(IF(B22<>0,B22/B21-1,""),IF(B21<>0,B22/B21-1,"")) ->  | N28: =IFERROR(N22/N21-1,"") -> 
A29: 2017 | N29: =IFERROR(N23/N22-1,"") -> 
A30: 2018
A31: 2019
A33: КАУЧУК-СИЛОВЫЕ РАЗЪЕМЫ
B34: Январь | C34: Февраль | D34: Март | E34: Апрель | F34: Май | G34: Июнь | H34: Июль | I34: Август | J34: Сентябрь | K34: Октябрь | L34: Ноябрь | M34: Декабрь | N34: Итог
B35: Количество | C35: Количество | D35: Количество | E35: Количество | F35: Количество | G35: Количество | H35: Количество | I35: Количество | J35: Количество | K35: Количество | L35: Количество | M35: Количество | N35: Количество
A36: 2014 | N36: =SUM(B36:M36) -> 0
A37: 2015 | N37: 0
A38: 2016 | N38: 0
A39: 2017 | N39: 0
A40: 2018 | N40: =SUM(B40:M40) -> 0
A41: 2019 | N41: =SUM(B41:M41) -> 0
A43: 2015 | B43: =IFERROR(IF(B37<>0,B37/B36-1,""),IF(B36<>0,B37/B36-1,"")) ->  | C43: =IFERROR(IF(C37<>0,C37/C36-1,""),IF(C36<>0,C37/C36-1,"")) ->  | N43: =IFERROR(N37/N36-1,"") -> 
A44: 2016 | B44: =IFERROR(IF(B38<>0,B38/B37-1,""),IF(B37<>0,B38/B37-1,"")) ->  | N44: =IFERROR(N38/N37-1,"") -> 
A45: 2017 | N45: =IFERROR(N39/N38-1,"") -> 
A46: 2018 | N46: =IFERROR(N40/N39-1,"") -> 
A47: 2019
A49: АКСЕССУАРЫ LEZARD
B50: Январь | C50: Февраль | D50: Март | E50: Апрель | F50: Май | G50: Июнь | H50: Июль | I50: Август | J50: Сентябрь | K50: Октябрь | L50: Ноябрь | M50: Декабрь | N50: Итог
B51: Количество | C51: Количество | D51: Количество | E51: Количество | F51: Количество | G51: Количество | H51: Количество | I51: Количество | J51: Количество | K51: Количество | L51: Количество | M51: Количество | N51: Количество
A52: 2014 | N52: =SUM(B52:M52) -> 0
A53: 2015 | N53: 0
A54: 2016 | N54: 0
A55: 2017 | N55: 0
A56: 2018 | N56: =SUM(B56:M56) -> 0
A57: 2019 | N57: =SUM(B57:M57) -> 0
A59: 2015 | B59: =IFERROR(IF(B53<>0,B53/B52-1,""),IF(B52<>0,B53/B52-1,"")) ->  | C59: =IFERROR(IF(C53<>0,C53/C52-1,""),IF(C52<>0,C53/C52-1,"")) ->  | N59: =IFERROR(N53/N52-1,"") -> 
A60: 2016 | B60: =IFERROR(IF(B54<>0,B54/B53-1,""),IF(B53<>0,B54/B53-1,"")) ->  | N60: =IFERROR(N54/N53-1,"") -> 
A61: 2017 | N61: =IFERROR(N55/N54-1,"") -> 
A62: 2018 | N62: =IFERROR(N56/N55-1,"") -> 
A63: 2019
A65: ЛИЛА УДЛ. ЛЕЗАРД
B66: Январь | C66: Февраль | D66: Март | E66: Апрель | F66: Май | G66: Июнь | H66: Июль | I66: Август | J66: Сентябрь | K66: Октябрь | L66: Ноябрь | M66: Декабрь | N66: Итог
B67: Количество | C67: Количество | D67: Количество | E67: Количество | F67: Количество | G67: Количество | H67: Количество | I67: Количество | J67: Количество | K67: Количество | L67: Количество | M67: Количество | N67: Количество
A68: 2014 | N68: =SUM(B68:M68) -> 0
A69: 2015 | N69: 0
A70: 2016 | N70: 0
A71: 2017 | N71: 0
A72: 2018 | N72: =SUM(B72:M72) -> 0
A73: 2019 | N73: =SUM(B73:M73) -> 0
A75: 2015 | B75: =IFERROR(IF(B69<>0,B69/B68-1,""),IF(B68<>0,B69/B68-1,"")) ->  | C75: =IFERROR(IF(C69<>0,C69/C68-1,""),IF(C68<>0,C69/C68-1,"")) ->  | N75: =IFERROR(N69/N68-1,"") -> 
A76: 2016 | B76: =IFERROR(IF(B70<>0,B70/B69-1,""),IF(B69<>0,B70/B69-1,"")) ->  | N76: =IFERROR(N70/N69-1,"") -> 
A77: 2017 | N77: =IFERROR(N71/N70-1,"") -> 
A78: 2018 | N78: =IFERROR(N72/N71-1,"") -> 
A79: 2019
A81: DEMET
B82: Январь | C82: Февраль | D82: Март | E82: Апрель | F82: Май | G82: Июнь | H82: Июль | I82: Август | J82: Сентябрь | K82: Октябрь | L82: Ноябрь | M82: Декабрь | N82: Итог
B83: Количество | C83: Количество | D83: Количество | E83: Количество | F83: Количество | G83: Количество | H83: Количество | I83: Количество | J83: Количество | K83: Количество | L83: Количество | M83: Количество | N83: Количество
A84: 2014 | N84: =SUM(B84:M84) -> 0
A85: 2015 | N85: 0
A86: 2016 | N86: 0
A87: 2017 | N87: 0
A88: 2018 | N88: =SUM(B88:M88) -> 0
A89: 2019 | N89: =SUM(B89:M89) -> 0
A91: 2015 | B91: =IFERROR(IF(B85<>0,B85/B84-1,""),IF(B84<>0,B85/B84-1,"")) ->  | C91: =IFERROR(IF(C85<>0,C85/C84-1,""),IF(C84<>0,C85/C84-1,"")) ->  | N91: =IFERROR(N85/N84-1,"") -> 
A92: 2016 | B92: =IFERROR(IF(B86<>0,B86/B85-1,""),IF(B85<>0,B86/B85-1,"")) ->  | N92: =IFERROR(N86/N85-1,"") -> 
A93: 2017 | N93: =IFERROR(N87/N86-1,"") -> 
A94: 2018 | N94: =IFERROR(N88/N87-1,"") -> 
A95: 2019
A97: DERİY
B98: Январь | C98: Февраль | D98: Март | E98: Апрель | F98: Май | G98: Июнь | H98: Июль | I98: Август | J98: Сентябрь | K98: Октябрь | L98: Ноябрь | M98: Декабрь | N98: Итог
B99: Количество | C99: Количество | D99: Количество | E99: Количество | F99: Количество | G99: Количество | H99: Количество | I99: Количество | J99: Количество | K99: Количество | L99: Количество | M99: Количество | N99: Количество
A100: 2014 | N100: =SUM(B100:M100) -> 0
A101: 2015 | N101: 0
A102: 2016 | N102: 0
A103: 2017 | N103: 0
A104: 2018 | N104: =SUM(B104:M104) -> 0
A105: 2019 | N105: =SUM(B105:M105) -> 0
A107: 2015 | B107: =IFERROR(IF(B101<>0,B101/B100-1,""),IF(B100<>0,B101/B100-1,"")) ->  | C107: =IFERROR(IF(C101<>0,C101/C100-1,""),IF(C100<>0,C101/C100-1,"")) ->  | N107: =IFERROR(N101/N100-1,"") -> 
A108: 2016 | B108: =IFERROR(IF(B102<>0,B102/B101-1,""),IF(B101<>0,B102/B101-1,"")) ->  | N108: =IFERROR(N102/N101-1,"") -> 
A109: 2017 | N109: =IFERROR(N103/N102-1,"") -> 
A110: 2018 | N110: =IFERROR(N104/N103-1,"") -> 
A111: 2019
A113: MİRA
B114: Январь | C114: Февраль | D114: Март | E114: Апрель | F114: Май | G114: Июнь | H114: Июль | I114: Август | J114: Сентябрь | K114: Октябрь | L114: Ноябрь | M114: Декабрь | N114: Итог
B115: Количество | C115: Количество | D115: Количество | E115: Количество | F115: Количество | G115: Количество | H115: Количество | I115: Количество | J115: Количество | K115: Количество | L115: Количество | M115: Количество | N115: Количество
A116: 2014 | N116: =SUM(B116:M116) -> 0
A117: 2015 | N117: 0
A118: 2016 | N118: 0
A119: 2017 | N119: 0
A120: 2018 | N120: =SUM(B120:M120) -> 0
A121: 2019 | N121: =SUM(B121:M121) -> 0
A123: 2015 | B123: =IFERROR(IF(B117<>0,B117/B116-1,""),IF(B116<>0,B117/B116-1,"")) ->  | C123: =IFERROR(IF(C117<>0,C117/C116-1,""),IF(C116<>0,C117/C116-1,"")) ->  | N123: =IFERROR(N117/N116-1,"") -> 
A124: 2016 | B124: =IFERROR(IF(B118<>0,B118/B117-1,""),IF(B117<>0,B118/B117-1,"")) ->  | N124: =IFERROR(N118/N117-1,"") -> 
A125: 2017 | N125: =IFERROR(N119/N118-1,"") -> 
A126: 2018 | N126: =IFERROR(N120/N119-1,"") -> 
A127: 2019
A129: NATA
B130: Январь | C130: Февраль | D130: Март | E130: Апрель | F130: Май | G130: Июнь | H130: Июль | I130: Август | J130: Сентябрь | K130: Октябрь | L130: Ноябрь | M130: Декабрь | N130: Итог
B131: Количество | C131: Количество | D131: Количество | E131: Количество | F131: Количество | G131: Количество | H131: Количество | I131: Количество | J131: Количество | K131: Количество | L131: Количество | M131: Количество | N131: Количество
A132: 2014 | N132: =SUM(B132:M132) -> 0
A133: 2015 | N133: 0
A134: 2016 | N134: 0
A135: 2017 | N135: 0
A136: 2018 | N136: =SUM(B136:M136) -> 0
A137: 2019 | N137: =SUM(B137:M137) -> 0
A139: 2015 | B139: =IFERROR(IF(B133<>0,B133/B132-1,""),IF(B132<>0,B133/B132-1,"")) ->  | C139: =IFERROR(IF(C133<>0,C133/C132-1,""),IF(C132<>0,C133/C132-1,"")) ->  | N139: =IFERROR(N133/N132-1,"") -> 
A140: 2016 | B140: =IFERROR(IF(B134<>0,B134/B133-1,""),IF(B133<>0,B134/B133-1,"")) ->  | N140: =IFERROR(N134/N133-1,"") -> 
A141: 2017 | N141: =IFERROR(N135/N134-1,"") -> 
A142: 2018 | N142: =IFERROR(N136/N135-1,"") -> 
A143: 2019
A145: RAİN
B146: Январь | C146: Февраль | D146: Март | E146: Апрель | F146: Май | G146: Июнь | H146: Июль | I146: Август | J146: Сентябрь | K146: Октябрь | L146: Ноябрь | M146: Декабрь | N146: Итог
B147: Количество | C147: Количество | D147: Количество | E147: Количество | F147: Количество | G147: Количество | H147: Количество | I147: Количество | J147: Количество | K147: Количество | L147: Количество | M147: Количество | N147: Количество
A148: 2014 | B148: 55820.51 | C148: 90622.94 | D148: 86983.3 | E148: 105429.45 | F148: 42717.43 | G148: 55820.51 | H148: 90622.94 | I148: 86983.3 | J148: 69804.41 | K148: 63547.99 | L148: 77878.07 | M148: 69804.41 | N148: =SUM(B148:M148) -> 896035.26
A149: 2015 | B149: 74693.37 | C149: 63695.89 | D149: 52901.58 | E149: 28470.46 | F149: 36561.97 | G149: 54541.3 | H149: 53304.7 | I149: 32092.61 | J149: 60110.95 | K149: 53824.56 | L149: 53230 | M149: 52005.65 | N149: 615433.04
A150: 2016 | B150: 24502.81 | C150: 35273.68 | D150: 46287.65 | E150: 59157.14 | F150: 61334.95 | G150: 74693.37 | H150: 70536.76 | I150: 63695.89 | J150: 83619.56 | K150: 69804.41 | L150: 63547.99 | M150: 77878.07 | N150: 730332.28
A151: 2017 | B151: 42717.43 | C151: 55820.51 | D151: 90622.94 | E151: 86983.3 | F151: 105429.45 | G151: 105154.88 | H151: 116523.85 | I151: 90517.59 | J151: 87620.35 | K151: 116758.07 | L151: 88428.85 | M151: 106535.87 | N151: 1093113.09
A152: 2018 | B152: 63295.41 | C152: 72770.29 | D152: 91482.78 | E152: 117997.72 | F152: 128005.65 | G152: 107543.11 | H152: 111073.2 | I152: 81246.44 | J152: 150777.18 | K152: 112091.13 | L152: 107603.89 | M152: 53824.56 | N152: =SUM(B152:M152) -> 1197711.36
A153: 2019 | B153: 86983.3 | C153: 105429.45 | D153: 105154.88 | E153: 116523.85 | F153: 90517.59 | G153: 87620.35 | H153: 116758.07 | I153: 150000 | J153: 18000 | K153: 600000 | L153: 300000 | N153: =SUM(B153:M153) -> 1776987.49
A155: 2015 | B155: =IFERROR(IF(B149<>0,B149/B148-1,""),IF(B148<>0,B149/B148-1,"")) -> 0.3380990249 | C155: =IFERROR(IF(C149<>0,C149/C148-1,""),IF(C148<>0,C149/C148-1,"")) -> -0.2971328231 | D155: -0.3918191193 | E155: -0.7299572368 | F155: -0.1440971519 | G155: -0.02291648715 | H155: -0.4117968364 | I155: -0.6310486036 | J155: -0.1388660115 | K155: -0.1530092455 | L155: -0.3164956451 | M155: -0.2549804518 | N155: =IFERROR(N149/N148-1,"") -> -0.3131597969
A156: 2016 | B156: =IFERROR(IF(B150<>0,B150/B149-1,""),IF(B149<>0,B150/B149-1,"")) -> -0.6719546862 | C156: -0.4462173305 | D156: -0.125023298 | E156: 1.077842789 | F156: 0.6775614115 | G156: 0.3694827589 | H156: 0.3232746831 | I156: 0.9847525645 | J156: 0.3910869817 | K156: 0.2968877033 | L156: 0.1938378734 | M156: 0.497492484 | N156: =IFERROR(N150/N149-1,"") -> 0.1866965738
A157: 2017 | B157: 0.7433686177 | C157: 0.5824974882 | D157: 0.9578211467 | E157: 0.4703770331 | F157: 0.7189131156 | G157: 0.4078208012 | H157: 0.6519592054 | I157: 0.4210899636 | J157: 0.04784514532 | K157: 0.6726460406 | L157: 0.3915286699 | M157: 0.3679829251 | N157: =IFERROR(N151/N150-1,"") -> 0.4967339113
A158: 2018 | B158: 0.4817232685 | C158: 0.3036478886 | D158: 0.00948810533 | E158: 0.3565560286 | F158: 0.2141356139 | G158: 0.02271154701 | H158: -0.04677711902 | I158: -0.1024237389 | J158: 0.7208009327 | K158: -0.03997102727 | L158: 0.2168414494 | M158: -0.4947752339 | N158: =IFERROR(N152/N151-1,"") -> 0.09568842506
A159: 2019 | B159: 0.3742434088 | C159: 0.4487979916 | D159: 0.1494499839 | E159: -0.01249066507 | F159: -0.2928625416 | G159: -0.185253709 | H159: 0.05118129306 | I159: 0.8462347396 | J159: -0.8806185392 | K159: 4.352787504 | L159: 1.788003296
A161: TÜM ÜRÜNLER
B162: Январь | C162: Февраль | D162: Март | E162: Апрель | F162: Май | G162: Июнь | H162: Июль | I162: Август | J162: Сентябрь | K162: Октябрь | L162: Ноябрь | M162: Декабрь | N162: Итог
B163: Количество | C163: Количество | D163: Количество | E163: Количество | F163: Количество | G163: Количество | H163: Количество | I163: Количество | J163: Количество | K163: Количество | L163: Количество | M163: Количество | N163: Количество
A164: 2014 | B164: =B4+B20+B36+B52+B68+B84+B100+B116+B132+B148 -> 55820.51 | C164: 90622.94 | D164: =D4+D20+D36+D52+D68+D84+D100+D116+D132+D148 -> 86983.3 | E164: 105429.45 | F164: 42717.43 | G164: 55820.51 | H164: 90622.94 | I164: 86983.3 | J164: 69804.41 | K164: 63547.99 | L164: 77878.07 | M164: 69804.41 | N164: =SUM(B164:M164) -> 896035.26
A165: 2015 | B165: 74693.37 | C165: 63695.89 | D165: =D5+D21+D37+D53+D69+D85+D101+D117+D133+D149 -> 52901.58 | E165: 28470.46 | F165: 36561.97 | G165: 54541.3 | H165: 53304.7 | I165: 32092.61 | J165: 60110.95 | K165: 53824.56 | L165: 53230 | M165: 52005.65 | N165: =SUM(B165:M165) -> 615433.04
A166: 2016 | B166: 24502.81 | C166: 35273.68 | D166: =D6+D22+D38+D54+D70+D86+D102+D118+D134+D150 -> 46287.65 | E166: 59157.14 | F166: 61334.95 | G166: 74693.37 | H166: 70536.76 | I166: 63695.89 | J166: 83619.56 | K166: 69804.41 | L166: 63547.99 | M166: 77878.07 | N166: 730332.28
A167: 2017 | B167: 42717.43 | C167: 55820.51 | D167: =D7+D23+D39+D55+D71+D87+D103+D119+D135+D151 -> 90622.94 | E167: 86983.3 | F167: 105429.45 | G167: 105154.88 | H167: 116523.85 | I167: 90517.59 | J167: 87620.35 | K167: 116758.07 | L167: 88428.85 | M167: 106535.87 | N167: 1093113.09
A168: 2018 | B168: 63295.41 | C168: 72770.29 | D168: =D8+D24+D40+D56+D72+D88+D104+D120+D136+D152 -> 91482.78 | E168: 117997.72 | F168: 128005.65 | G168: 107543.11 | H168: 111073.2 | I168: 81246.44 | J168: 150777.18 | K168: 112091.13 | L168: 107603.89 | M168: 53824.56 | N168: =SUM(B168:M168) -> 1197711.36
A169: 2019 | B169: 86983.3 | C169: 105429.45 | D169: =D9+D25+D41+D57+D73+D89+D105+D121+D137+D153 -> 105154.88 | E169: 116523.85 | F169: 90517.59 | G169: 87620.35 | H169: 116758.07 | I169: 150000 | J169: 18000 | K169: 600000 | L169: 300000 | M169: 0 | N169: =SUM(B169:M169) -> 1776987.49
A171: 2015 | B171: =IFERROR(IF(B165<>0,B165/B164-1,""),IF(B164<>0,B165/B164-1,"")) -> 0.3380990249 | C171: =IFERROR(IF(C165<>0,C165/C164-1,""),IF(C164<>0,C165/C164-1,"")) -> -0.2971328231 | D171: -0.3918191193 | E171: -0.7299572368 | F171: -0.1440971519 | G171: -0.02291648715 | H171: -0.4117968364 | I171: -0.6310486036 | J171: -0.1388660115 | K171: -0.1530092455 | L171: -0.3164956451 | M171: -0.2549804518 | N171: =IFERROR(N165/N164-1,"") -> -0.3131597969
A172: 2016 | B172: =IFERROR(IF(B166<>0,B166/B165-1,""),IF(B165<>0,B166/B165-1,"")) -> -0.6719546862 | C172: -0.4462173305 | D172: -0.125023298 | E172: 1.077842789 | F172: 0.6775614115 | G172: 0.3694827589 | H172: 0.3232746831 | I172: 0.9847525645 | J172: 0.3910869817 | K172: 0.2968877033 | L172: 0.1938378734 | M172: 0.497492484 | N172: =IFERROR(N166/N165-1,"") -> 0.1866965738
A173: 2017 | B173: 0.7433686177 | C173: 0.5824974882 | D173: 0.9578211467 | E173: 0.4703770331 | F173: 0.7189131156 | G173: 0.4078208012 | H173: 0.6519592054 | I173: 0.4210899636 | J173: 0.04784514532 | K173: 0.6726460406 | L173: 0.3915286699 | M173: 0.3679829251 | N173: =IFERROR(N167/N166-1,"") -> 0.4967339113
A174: 2018 | B174: 0.4817232685 | C174: 0.3036478886 | D174: 0.00948810533 | E174: 0.3565560286 | F174: 0.2141356139 | G174: 0.02271154701 | H174: -0.04677711902 | I174: -0.1024237389 | J174: 0.7208009327 | K174: -0.03997102727 | L174: 0.2168414494 | M174: -0.4947752339 | N174: =IFERROR(N168/N167-1,"") -> 0.09568842506
A175: 2019 | B175: 0.3742434088 | C175: 0.4487979916 | D175: 0.1494499839 | E175: -0.01249066507 | F175: -0.2928625416 | G175: -0.185253709 | H175: 0.05118129306 | I175: 0.8462347396 | J175: -0.8806185392 | K175: 4.352787504 | L175: 1.788003296
A177: Grupların satışlardaki payı
C178: Итог | D178: Серия Мира - 701 | E178: Силовые разъемы (каучук) Лезард - 106 | F178: Серия Ната - 710 | G178: Аксессуары Lezard - 715 | H178: Серия Демет - 711 | I178: Серия Рэйн - 703 | J178: Серия Лила Удл. Lezard - 720 | K178: Боксы Лезард - 730 | L178: Серия Дерий - 702 | M178: Светодиодные панели - 440
B179: 2014 | C179: =SUM(D179:M179) -> 896035.26 | D179: =N116 -> 0 | E179: =N36 -> 0 | F179: =N132 -> 0 | G179: =N52 -> 0 | H179: =N84 -> 0 | I179: =N148 -> 896035.26 | J179: =N68 -> 0 | K179: =N4 -> 0 | L179: =N100 -> 0 | M179: =N20 -> 0
B180: 2015 | C180: 615433.04 | D180: 0 | E180: 0 | F180: 0 | G180: 0 | H180: 0 | I180: 615433.04 | J180: 0 | K180: 0 | L180: 0 | M180: 0
B181: 2016 | C181: 730332.28 | D181: 0 | E181: 0 | F181: 0 | G181: 0 | H181: 0 | I181: 730332.28 | J181: 0 | K181: 0 | L181: 0 | M181: 0
B182: 2017 | C182: 1093113.09 | D182: 0 | E182: 0 | F182: 0 | G182: 0 | H182: 0 | I182: 1093113.09 | J182: 0 | K182: 0 | L182: 0 | M182: 0
A183: 1 Çeyrek Verileri → | B183: 2018 | C183: 1197711.36 | D183: 0 | E183: 0 | F183: 0 | G183: 0 | H183: 0 | I183: 1197711.36 | J183: 0 | K183: 0 | L183: 0 | M183: 0
B184: 2019 | C184: 1776987.49 | D184: 0 | E184: 0 | F184: 0 | G184: 0 | H184: 0 | I184: 1776987.49 | J184: 0 | K184: 0 | L184: 0 | M184: 0
B186: 2014 | D186: =IFERROR((D179/$C179),"") -> 0 | E186: =IFERROR((E179/$C179),"") -> 0 | F186: =IFERROR((F179/$C179),"") -> 0 | G186: =IFERROR((G179/$C179),"") -> 0 | H186: 0 | I186: 1 | J186: =IFERROR((J179/$C179),"") -> 0 | K186: 0 | L186: =IFERROR((L179/$C179),"") -> 0 | M186: 0
B187: 2015 | D187: =IFERROR((D180/$C180),"") -> 0 | E187: =IFERROR((E180/$C180),"") -> 0 | F187: 0 | G187: 0 | H187: 0 | I187: 1 | J187: 0 | K187: 0 | L187: 0 | M187: 0
B188: 2016 | D188: =IFERROR((D181/$C181),"") -> 0 | E188: =IFERROR((E181/$C181),"") -> 0 | F188: 0 | G188: 0 | H188: 0 | I188: 1 | J188: 0 | K188: 0 | L188: 0 | M188: 0
B189: 2017 | D189: =IFERROR((D182/$C182),"") -> 0 | E189: =IFERROR((E182/$C182),"") -> 0 | F189: 0 | G189: 0 | H189: 0 | I189: 1 | J189: 0 | K189: 0 | L189: 0 | M189: 0
B190: 2018 | D190: 0 | E190: =IFERROR((E183/$C183),"") -> 0 | F190: 0 | G190: 0 | H190: 0 | I190: 1 | J190: 0 | K190: 0 | L190: 0 | M190: 0
B191: 2019 | D191: 0 | E191: =IFERROR((E184/$C184),"") -> 0 | F191: 0 | G191: 0 | H191: 0 | I191: 1 | J191: 0 | K191: 0 | L191: 0 | M191: 0

Sheet Доли в закупках

Sheet RAİN SERISI
